Cogmind - Beta 17 @@@ ROGUE MODE // 2026.08.25 @ 13:44:22 Player: THN-L0C Result: Self-destructed Performance ------------- Evolutions (5) 2500 Regions Visited (10) 2000 Robots Destroyed (67) 335 Value Destroyed (2460) 2460 Prototype IDs (52) 1040 Alien Tech Used (0) 0 Bonus (3076) 3076 TOTAL SCORE: 11411 Bonus ------- Follower Combat Kills 478 Delivered SUBCON Basin 2000 Registered with UFD 300 Met Data Miner 300 Friendly Fire -2 Cogmind --------- Core Integrity 606/1000 Matter 215/300 Energy 415/415 System Corruption 9% Temperature Warm (142) Movement Walking (190) Ox1 Location -5/Factory Parts ------- > --- POWER (2) -------- Cold Fusion Reactor Neutrino Core > --- PROPULSION (3+2) - Enhanced Flexi-carbon Leg (+) Enhanced Flexi-carbon Leg (+) Arachnoskeleton > --- UTILITY (10) ----- Large Storage Unit Advanced Signal Interpreter Advanced Melee Analysis Suite Microactuators Improved Actuator Array Improved Transmission Jammer Tech Extrapolator > --- WEAPON (2) ------- Companion Sword Phasing Sabre > --- INVENTORY (15) --- Thunder Leg Advanced Power Amplifier Energy Well (350) High-capacity Matter Pod (200) Deep Structural Scanner Advanced Sensor Array Advanced Terrain Scanner Surveybot 17 Chip Reaction Control System Cloaking Device Hardened Medium Armor Plating Improved Force Field Mapping Drone Bay (3/3) Micro-nuke Launcher CPS Tube (2) Peak State ------------ > --- POWER ------------ Cold Fusion Reactor Neutrino Core > --- PROPULSION ------- Thunder Leg Enhanced Flexi-carbon Leg Enhanced Flexi-carbon Leg Arachnoskeleton > --- UTILITY ---------- Advanced Power Amplifier Large Storage Unit Advanced Signal Interpreter Advanced Melee Analysis Suite Improved Transmission Jammer Cloaking Device Enhanced Scrap Shield Improved Force Field Tech Extrapolator > --- WEAPON ----------- Cooled Plasma Cannon Companion Sword > --- INVENTORY -------- Thunder Leg Energy Well High-capacity Matter Pod Deep Structural Scanner Advanced Sensor Array Advanced Terrain Scanner Surveybot 17 Chip Microactuators Improved Actuator Array Reaction Control System Improved Propulsion Shielding Mapping Drone Bay Micro-nuke Launcher CPS Tube Phasing Sabre [Rating: 126] Favorites ----------- Power Neutrino Core Engine Ion Engine Power Core Neutrino Core Reactor Cold Fusion Reactor Propulsion Armored Wheel Treads Light Treads Leg Flexi-carbon Leg Wheel Armored Wheel Flight Unit Makeshift Flight Unit Utility Huge Storage Unit Device Advanced Sensor Array Storage Huge Storage Unit Processor Tech Extrapolator Hackware Improved System Shield Protection Enhanced Scrap Shield Weapon Companion Sword Energy Gun Plasma Rifle Energy Cannon Heavy Plasma Cannon Ballistic Gun Battle Rifle Launcher Mini Grenade Launcher Special Weapon Mining Laser Impact Weapon Impact Mace Slashing Weapon Companion Sword Special Melee Weapon Improved Datajack Build | -11 -10 -10 -8 -8 -6 -6 -6 -6 -5 -5 ------- Run | Yrd Mat Sub Rec Scr Fac Low Low Dat Pro Fac Slots Evolved 10 | . . . . . 8 . . . . 2 Power 1 | . . . . . 1 . . . . . Propulsion 1 | . . . . . 1 . . . . . Utility 8 | . . . . . 6 . . . . 2 Weapon . | . . . . . . . . . . . Parts Attached 87 | 6 5 12 1 22 13 5 1 . 9 13 Power 10 | 1 1 1 . 2 3 . . . 2 . Engine 5 | 1 1 1 . 2 . . . . . . Core 4 | . . . . . 2 . . . 2 . Reactor 1 | . . . . . 1 . . . . . Propulsion 15 | 2 . 1 . 7 1 . . . 1 3 Treads 4 | 2 . 1 . 1 . . . . . . Leg 7 | . . . . 2 1 . . . 1 3 Wheel 2 | . . . . 2 . . . . . . Hover . | . . . . . . . . . . . Flight 2 | . . . . 2 . . . . . . Utility 39 | 2 2 5 . 6 7 4 1 . 5 7 Device 20 | 1 . 1 . 5 3 2 1 . 3 4 Storage 5 | 1 1 2 . . . . . . . 1 Processor 5 | . 1 1 . 1 . 1 . . . 1 Hackware 2 | . . . . . 2 . . . . . Protection 7 | . . 1 . . 2 1 . . 2 1 Artifact . | . . . . . . . . . . . Weapon 23 | 1 2 5 1 7 2 1 . . 1 3 Energy Gun 2 | . . 1 . 1 . . . . . . Energy Cannon 4 | . . 1 . 1 1 . . . . 1 Ballistic Gun 4 | 1 1 2 . . . . . . . . Ballistic Cannon . | . . . . . . . . . . . Launcher 5 | . 1 . . 1 . 1 . . . 2 Special Weapon 4 | . . 1 . 3 . . . . . . Impact Weapon 1 | . . . . . 1 . . . . . Slashing Weapon 2 | . . . . 1 . . . . 1 . Piercing Weapon . | . . . . . . . . . . . Special Melee Weapon 1 | . . . 1 . . . . . . . Unidentified Prototypes 8 | . . . . 1 3 1 . . . 3 Parts Lost 6 | . . 1 . . . 1 . . 1 3 Power 1 | . . . . . . . . . 1 . Propulsion 1 | . . . . . . . . . . 1 Utility 3 | . . . . . . 1 . . . 2 Weapon 1 | . . 1 . . . . . . . . Highest Loss Streak 3 | . . 1 . . . 1 . . 1 3 To Critical Strikes 1 | . . . . . . . . . 1 . Average Backups 16 | . 12 17 8 14 22 22 23 23 21 15 Power . | . . 1 . . 1 2 2 2 1 . Propulsion 1 | . . . 1 1 2 3 3 3 3 1 Utility 9 | . 6 6 4 8 14 14 14 14 13 11 Weapon 3 | . 5 7 2 2 2 2 3 3 2 1 Tool/Special . | . . . . . . . . . . . Unused Backups 40 | . 1 14 1 8 4 . . . 2 10 Power 4 | . . 3 . . 1 . . . . . Propulsion 2 | . . . . . . . . . . 2 Utility 21 | . 1 3 1 5 2 . . . 2 7 Weapon 10 | . . 7 . 3 . . . . . . Tool/Special 3 | . . 1 . . 1 . . . . 1 Average Slot Usage (%) 89 | . 99 99 98 74 96 93 93 93 92 82 Engine 8 | . 14 14 14 12 3 . . . . . Core 3 | . . . . . 9 13 13 13 12 5 Treads 13 | . 27 28 28 13 . . . . . . Leg 3 | . . . . 2 3 6 6 6 5 18 Wheel 4 | . . . . 4 13 13 13 13 12 . Flight 1 | . . . . 4 . . . . . . Device 10 | . 11 9 11 2 15 13 19 19 19 19 Storage 9 | . 14 14 14 10 6 6 6 6 5 5 Processor 5 | . 2 . . 4 6 12 13 13 12 13 Protection 5 | . . 4 2 6 12 13 6 6 6 6 Energy Gun 2 | . . 4 1 2 4 . . . . . Energy Cannon 2 | . . 1 . 2 . 4 3 6 3 2 Ballistic Gun 4 | . 18 11 11 . . . . . . . Launcher 1 | . 8 4 . . . 1 2 . . . Special Weapon 2 | . . 6 11 . . . . . . . Slashing Weapon 2 | . . . . . 6 6 6 6 7 6 Special Melee Weapon 2 | . . . 2 7 . . . . . . Peak Build Rating 126 | 6 10 33 33 38 76 80 81 82 94 126 Average Rating 43 | 5 9 15 25 20 70 78 80 80 80 117 On Entrance 45 | . 6 10 33 18 35 74 78 81 78 92 Avg Prop Armor Cover (%) 3 | . . . . 5 5 2 2 2 2 4 Naked Turns 325 | . . . . 325 . . . . . . Heaviest Build 154 | 13 29 92 93 99 134 146 146 146 154 142 Greatest Support 129 | 40 40 40 40 43 24 24 24 24 50 129 Greatest Overweight (x) 6 | . . 2 2 4 5 6 6 6 6 2 Average Overweight (x) 2 | . . 1 2 1 4 5 5 5 5 . Largest Inventory Capacity 25 | 8 15 25 25 25 25 25 25 25 25 25 Average Capacity 21 | 7 13 21 25 19 25 25 25 25 25 15 Most Carried 25 | 1 15 25 25 25 25 25 25 25 25 23 Average Carried 19 | . 12 20 19 15 24 24 25 25 24 15 Final Capacity 25 | 8 15 25 25 25 25 25 25 25 25 15 Final Carried 25 | 1 15 25 18 25 25 25 25 25 23 15 Class Distribution -------------------- 64% | Mutant 13% | Assassin 10% | Derelict-Mutant 3% | Infiltrator-Assassin Dominant Class ---------------- Mutant | -10/Materials Mutant | -10/Subcaves Mutant | -8/Recycling Mutant | -8/Scraptown Derelict-Mutant | -6/Factory Assassin | -6/Lower Caves Assassin | -6/Lower Caves Assassin | -6/Data Miner Assassin | -5/Proximity Caves Infiltrator-Assassin | -5/Factory Resources | -11 -10 -10 -8 -8 -6 -6 -6 -6 -5 -5 ----------- Run | Yrd Mat Sub Rec Scr Fac Low Low Dat Pro Fac Matter Collected 4415 | 309 359 641 385 1008 391 247 112 . 481 482 Remotely . | . . . . . . . . . . . Salvage Created 3205 | 121 235 364 49 . 335 270 532 . 478 821 Parts 154 | 9 16 22 . . 14 3 10 . 20 60 Haulers Intercepted 3 | . . . . . 2 . . . 1 . Recyclers Shooed 5 | 1 . . . . 4 . . . . . Parts Field Recycled 40 | . . . . 40 . . . . . . Retrieved Matter 270 | . . . . 270 . . . . . . Parts Self-Destructed 30 | . . 17 . . . 1 1 . 11 . Prevented 4 | . . . . . . . 2 . 2 . Parts Restored . | . . . . . . . . . . . Kills | -11 -10 -10 -8 -8 -6 -6 -6 -6 -5 -5 ------- Run | Yrd Mat Sub Rec Scr Fac Low Low Dat Pro Fac Combat Hostiles Destroyed 52 | . 8 12 1 . 3 2 3 . 7 16 Melee 19 | . . . . . . . . . 4 15 Guns 10 | . 2 6 1 . 1 . . . . . Cannons 1 | . . . . . . . . . 1 . AOE 22 | . 6 6 . . 2 2 3 . 2 1 Classes Destroyed 13 | 3 2 2 1 . 1 1 . . 2 1 Worker 4 | 2 . . . . 1 . . . . 1 Tunneler 2 | 2 . . . . . . . . . . Hauler 3 | . . . . . 2 . . . 1 . Recycler 3 | 1 2 . . . . . . . . . Minesweeper 1 | . . . . . . . . . 1 . Watcher 2 | . . . . . . . . . . 2 Swarmer 17 | . 6 . . . 2 . 3 . 1 5 Grunt 9 | . 2 . . . 1 . . . 5 1 Sentry 2 | . . . . . . . . . 1 1 Hunter 4 | . . . . . . 2 . . . 2 Programmer 8 | . . . 1 . . . . . . 7 Artisan 2 | . . 2 . . . . . . . . Subdweller 12 | . . 12 . . . . . . . . Best Kill Streak 5 | 3 5 2 1 . 2 2 3 . 3 5 Combat Bots Only 5 | . 3 2 1 . 2 2 3 . 3 5 Max Kills in Single Turn 3 | 1 3 2 1 . 1 2 2 . 1 2 Gunslinging . | . . . . . . . . . . . Exploded 2 | . 2 1 . . 1 2 2 . 1 1 Melee 1 | . . . . . . . . . 1 1 Uniques/NPCs Destroyed . | . . . . . . . . . . . Combat | -11 -10 -10 -8 -8 -6 -6 -6 -6 -5 -5 -------- Run | Yrd Mat Sub Rec Scr Fac Low Low Dat Pro Fac Hostile Shots Fired 456 | . 22 29 22 . 19 18 13 . 88 245 Missed 132 | . 5 8 4 . 6 3 1 . 30 75 Hits 324 | . 17 21 18 . 13 15 12 . 58 170 Projectile 324 | . 17 21 18 . 13 15 12 . 58 170 AOE 2 | . . . . . . . . . . 2 Critical Strikes 14 | . . 1 . . 2 1 . . 5 5 Actively Blocked 1 | . . . . . 1 . . . . . Part Disruptions 1 | . . . . . . . . . . 1 Damage Taken 5385 | . 255 575 268 . 254 282 123 . 773 2855 Core 715 | . 100 80 59 . 21 17 8 . 36 394 Absorbed by Shields 785 | . . . . . . . 113 . 305 367 Redirected to Shielding 272 | . . . . . 28 42 13 . . 189 Ignored by Resistances 10 | . . . . . . . . . 10 . Regen/Repaired (Parts) 327 | . 38 . . 207 64 . . . . 18 Core Remaining (%) 64 | 100 . . . 4 . . . . 90 . Volleys Fired 267 | 26 16 81 15 6 23 12 33 . 37 18 Largest 2 | 1 2 2 2 1 1 1 1 . 1 1 Hottest 100 | 20 40 100 75 . 90 90 90 . 90 90 Shots Fired 309 | 26 26 106 21 6 23 12 33 . 37 19 Gun 117 | 26 20 33 21 . 17 . . . . . Cannon 108 | . . 17 . . 3 7 30 . 33 18 Launcher 44 | . 6 22 . . 3 5 3 . 4 1 Special 40 | . . 34 . 6 . . . . . . Kinetic 93 | 26 20 32 15 . . . . . . . Thermal 166 | . . 52 6 . 20 7 30 . 33 18 Explosive 44 | . 6 22 . . 3 5 3 . 4 1 Electromagnetic . | . . . . . . . . . . . Robot Hit Streak 24 | 8 14 24 9 8 11 4 1 . 4 1 Robot Miss Streak 5 | 2 1 1 5 . 2 . 1 . 1 1 Penetration Max . | . . . . . . . . . . . Secondary Targets . | . . . . . . . . . . . Shots Hit Robots 238 | 19 17 41 15 11 15 12 20 . 28 60 Core Hits 116 | 6 17 22 1 . 11 8 8 . 16 27 Critical Kills . | . . . . . . . . . . . Critical Parts Destroyed 1 | 1 . . . . . . . . . . Critical Strikes 5 | 1 . 2 . . . . . . . 2 Destroy 3 | 1 . 2 . . . . . . . . Sever 2 | . . . . . . . . . . 2 Melee Attacks 223 | . . . 4 5 10 12 23 . 41 128 Impact . | . . . . . . . . . . . Slashing 214 | . . . . . 10 12 23 . 41 128 Piercing . | . . . . . . . . . . . Sneak Attacks 17 | . . . 4 5 1 . . . 3 4 Combat Hostiles 1 | . . . . . . . . . . 1 Follow-up Attacks 12 | . . . . . . 1 . . . 11 Damage Inflicted 10058 | 248 647 1249 239 . 576 963 1804 . 1553 2779 Guns 1244 | 248 161 359 239 . 237 . . . . . Cannons 94 | . . . . . . . . . 63 31 Explosions 2928 | . 486 890 . . 146 413 375 . 434 184 Melee 5792 | . . . . . 193 550 1429 . 1056 2564 Ramming . | . . . . . . . . . . . Kinetic 948 | 248 161 359 180 . . . . . . . Thermal 390 | . . . 59 . 237 . . . 63 31 Explosive 2928 | . 486 890 . . 146 413 375 . 434 184 Electromagnetic . | . . . . . . . . . . . Impact . | . . . . . . . . . . . Slashing 5792 | . . . . . 193 550 1429 . 1056 2564 Piercing . | . . . . . . . . . . . Highest Corruption 9 | . . . 2 . . . . . . 9 Average Corruption 5 | . . . 1 . . . . . . 6 Corruption Purged . | . . . . . . . . . . . Corruption Blocked . | . . . . . . . . . . . Effects 45 | . . . 6 . . . . . . 39 Message Errors 9 | . . . 2 . . . . . . 7 Matter Fused 10 | . . . 1 . . . . . . 9 Heat Flow Errors 5 | . . . 1 . . . . . . 4 Energy Discharges 8 | . . . 1 . . . . . . 7 Parts Rejected 1 | . . . . . . . . . . 1 Data Loss (minor) 7 | . . . . . . . . . . 7 Data Loss (major) 2 | . . . . . . . . . . 2 Misfires 2 | . . . 1 . . . . . . 1 Alerts 1 | . . . . . . . . . . 1 Overload Shots . | . . . . . . . . . . . Overflow Damage 1112 | . 6 . . . . 218 741 . 70 77 Projectiles 1 | . . . . . . . . . . 1 Explosions 88 | . 6 . . . . 23 55 . 4 . Melee 1023 | . . . . . . 195 686 . 66 76 Knockbacks . | . . . . . . . . . . . Impact . | . . . . . . . . . . . Kinetic . | . . . . . . . . . . . Secondary . | . . . . . . . . . . . Self-Inflicted Damage 243 | . 88 22 . . . 21 50 . . 62 Shots 7 | . 2 1 . . . 1 1 . . 2 Rammed . | . . . . . . . . . . . Targets Rammed . | . . . . . . . . . . . Kicked . | . . . . . . . . . . . Crushed . | . . . . . . . . . . . Highest Temperature 283 | . 18 4 283 . 126 144 231 . 192 135 Average Temperature 61 | . 9 3 114 . 44 49 69 . 54 41 Received Heat Transfer 849 | . 60 93 . . 39 . . . 124 533 Siege Activations . | . . . . . . . . . . . Martial Activations . | . . . . . . . . . . . Shielding Activations . | . . . . . . . . . . . Robots Disrupted 4 | . . . . . 1 . . . . 3 Combat Hostiles 4 | . . . . . 1 . . . . 3 Robots Corrupted . | . . . . . . . . . . . Combat Hostiles . | . . . . . . . . . . . Parts Fried . | . . . . . . . . . . . Impact Corruptions . | . . . . . . . . . . . Robots Melted . | . . . . . . . . . . . Combat Hostiles . | . . . . . . . . . . . Parts Melted 3 | . . . 1 . 2 . . . . . Heat Transferred 811 | . . . 111 . 550 . . . 100 50 Parts Sabotaged . | . . . . . . . . . . . Parts Stolen . | . . . . . . . . . . . Parts Stripped . | . . . . . . . . . . . Power Chain Reactions . | . . . . . . . . . . . Alert | -11 -10 -10 -8 -8 -6 -6 -6 -6 -5 -5 ------- Run | Yrd Mat Sub Rec Scr Fac Low Low Dat Pro Fac Maximum Alert Level 1 | . . . . . . . . . . 1 Low Security (%) 90 | 100 100 . 100 . 100 . . . . 70 Level 1 9 | . . . . . . . . . . 29 Level 2 . | . . . . . . . . . . . Level 3 . | . . . . . . . . . . . Level 4 . | . . . . . . . . . . . Level 5 . | . . . . . . . . . . . High Security . | . . . . . . . . . . . Max Security . | . . . . . . . . . . . Peak Influence 280 | 10 180 . 44 . 163 . . . . 280 Initial 37 | . . . . . . . . . . 37 Average 66 | . 51 . 6 . 53 . . . . 141 Influence Increases 2295 | 25 416 . 179 . 621 60 70 . 150 774 Destroy 0b10 Robot/C 1040 | . 160 . 20 . 280 40 60 . 140 340 Destroy 0b10 Robot/NC 100 | 25 10 . . . 30 10 . . 10 15 Destroy Leader 212 | . 30 . . . 78 10 10 . . 84 Allied During Kill 115 | . . . . . 113 . . . . 2 Successful Hack 150 | . 71 . 39 . 12 . . . . 28 Select Force Hacks 180 | . 60 . 120 . . . . . . . Disable Machine 105 | . 15 . . . 45 . . . . 45 Destroy Structure 243 | . 25 . . . 48 . . . . 170 Partial Spotted 15 | . . . . . . . . . . 15 Lose Combat Pursuer 135 | . 45 . . . 15 . . . . 75 Influence Decreases 2048 | 25 394 22 179 . 479 202 70 . 89 588 Entered New Map 88 | . . 11 . . . 53 . . . 24 Time Decay 1780 | 25 394 11 179 . 359 139 70 . 89 514 Lost Part 40 | . . . . . . 10 . . . 30 Lost Ally 140 | . . . . . 120 . . . . 20 Squads Dispatched 18 | . 2 . . . 7 . . . . 9 Investigation 3 | . 2 . . . . . . . . 1 Extermination 10 | . . . . . 4 . . . . 6 Reinforcement 5 | . . . . . 3 . . . . 2 Assault . | . . . . . . . . . . . Garrison . | . . . . . . . . . . . Intercept . | . . . . . . . . . . . Searches Triggered . | . . . . . . . . . . . Construction Impeded . | . . . . . . . . . . . Haulers Reinforced . | . . . . . . . . . . . Active Scanning Responses . | . . . . . . . . . . . Cargo Convoy Interrupts . | . . . . . . . . . . . Stealth | -11 -10 -10 -8 -8 -6 -6 -6 -6 -5 -5 --------- Run | Yrd Mat Sub Rec Scr Fac Low Low Dat Pro Fac Distress Signals 4 | . 1 . . . 1 . . . . 2 Communications Jammed 53 | . . . . . 17 . . . . 36 Distress Signals 53 | . . . . . 17 . . . . 36 Times Spotted 112 | . 16 13 1 . 20 2 6 . 13 41 Peak Tracking Total 6 | . 4 2 1 . 3 2 3 . 4 6 Tactical Retreats 8 | . 2 . . . 1 . . . 2 3 ECM-based Alert Blocks 5 | . . . . . . . . . 5 . Traps | -11 -10 -10 -8 -8 -6 -6 -6 -6 -5 -5 ------- Run | Yrd Mat Sub Rec Scr Fac Low Low Dat Pro Fac Traps Triggered 2 | . . 2 . . . . . . . . Indirectly . | . . . . . . . . . . . Trap Hack Attempts . | . . . . . . . . . . . Triggered . | . . . . . . . . . . . Disarmed . | . . . . . . . . . . . Reprogrammed . | . . . . . . . . . . . Reused 4 | . . . . . . . . . 4 . Traps Extracted . | . . . . . . . . . . . Installed 8 | . . . . . . . . . 8 . Triggered 4 | . . . . . . . . . 4 . Most Traps Carried 2 | . . . . . . . . . 2 . Machines | -11 -10 -10 -8 -8 -6 -6 -6 -6 -5 -5 ---------- Run | Yrd Mat Sub Rec Scr Fac Low Low Dat Pro Fac Machines Disabled 8 | . 1 1 . . 3 . . . . 3 Max in Single Turn 1 | . 1 1 . . 1 . . . . 1 Garrison Access 1 | . . . . . . . . . . 1 Machines Repaired . | . . . . . . . . . . . Machines Dismantled . | . . . . . . . . . . . Machines Sabotaged . | . . . . . . . . . . . Overloaded Fab Kills . | . . . . . . . . . . . Hacking | -11 -10 -10 -8 -8 -6 -6 -6 -6 -5 -5 --------- Run | Yrd Mat Sub Rec Scr Fac Low Low Dat Pro Fac Machines Accessed 55 | . 11 4 9 6 6 . . 4 . 15 Terminals 21 | . 8 . 5 . 2 . . . . 6 Fabricators 3 | . . . . . 1 . . . . 2 Repair Stations 4 | . 1 . . . 1 . . . . 2 Recycling Units 6 | . 2 . 4 . . . . . . . Scanalyzers 3 | . . . . . 1 . . . . 2 Garrison Access 4 | . . . . . 1 . . . . 3 Total Hacks 188 | . 30 8 27 43 15 . . 31 . 34 Successful 137 | . 14 8 17 43 7 . . 31 . 17 Failed 50 | . 16 . 10 . 7 . . . . 17 Catastrophic 6 | . 1 . . . 2 . . . . 3 Database Lockouts 1 | . . . . . 1 . . . . . Manual 59 | . 22 . 19 . 8 . . . . 10 Terminals 62 | . 26 . 17 . 7 . . . . 12 Fabricators 7 | . . . . . 1 . . . . 6 Repair Stations 10 | . 2 . . . 3 . . . . 5 Recycling Units 12 | . 2 . 10 . . . . . . . Scanalyzers 10 | . . . . . 2 . . . . 8 Garrison Access 5 | . . . . . 2 . . . . 3 Terminal Hacks 90 | . 3 8 1 43 1 . . 31 . 3 Record 57 | . . 5 . 41 . . . 11 . . Part Schematic 13 | . . . . . . . . 13 . . Robot Schematic 4 | . . . . . . . . 4 . . Prototype ID Bank 5 | . 1 . 1 . . . . 3 . . Open Door 2 | . . 1 . 1 . . . . . . Branch Access Points 1 | . . . . . . . . . . 1 Locate Traps 1 | . 1 . . . . . . . . . Recall Investigation 2 | . 1 . . . 1 . . . . . Hauler Manifests 1 | . . . . . . . . . . 1 Zone Layout 1 | . . . . . . . . . . 1 Proto ID Catalog 2 | . . 1 . 1 . . . . . . Release Object 1 | . . 1 . . . . . . . . Fabricator Hacks 2 | . . . . . . . . . . 2 Load Schematic 1 | . . . . . . . . . . 1 Build 1 | . . . . . . . . . . 1 Repair Station Hacks 6 | . 2 . . . 2 . . . . 2 Scan Component 3 | . 1 . . . 1 . . . . 1 Repair 3 | . 1 . . . 1 . . . . 1 Recycling Unit Hacks 4 | . . . 4 . . . . . . . Report Inventory 4 | . . . 4 . . . . . . . Scanalyzer 6 | . . . . . 1 . . . . 5 Insert Component 2 | . . . . . . . . . . 2 Analyze 2 | . . . . . . . . . . 2 Retrieve Study 2 | . . . . . 1 . . . . 1 Garrison Access Hacks 1 | . . . . . . . . . . 1 Seal Access 1 | . . . . . . . . . . 1 Unauthorized Hacks 28 | . 9 . 12 . 3 . . . . 4 Terminals 20 | . 7 . 8 . 2 . . . . 3 Assimilate 2 | . . . . . 1 . . . . 1 Botnet 7 | . 1 . 3 . 1 . . . . 2 Disrupt 1 | . 1 . . . . . . . . . Skim 10 | . 5 . 5 . . . . . . . Fabricators 2 | . . . . . 1 . . . . 1 Report 1 | . . . . . . . . . . 1 Liberate 1 | . . . . . 1 . . . . . Repair Stations . | . . . . . . . . . . . Recycling Units 6 | . 2 . 4 . . . . . . . Tunnel 6 | . 2 . 4 . . . . . . . Scanalyzers . | . . . . . . . . . . . Garrison Access . | . . . . . . . . . . . Data Cores Recovered . | . . . . . . . . . . . Used . | . . . . . . . . . . . Hacking Detections 32 | . 8 . 7 . 4 . . . . 13 Full Trace Events 1 | . . . . . . . . . . 1 Feedback Events . | . . . . . . . . . . . Feedback Blocked . | . . . . . . . . . . . Robot Schematics Acquired 4 | . . . . . . . . 4 . . Robots Built . | . . . . . . . . . . . Authchips . | . . . . . . . . . . . Time . | . . . . . . . . . . . Total Robot Build Rating . | . . . . . . . . . . . Part Schematics Acquired 51 | . . . . 9 12 2 1 14 6 7 Parts Built 2 | . . . . . . . . . . 2 Authchips . | . . . . . . . . . . . Time 73 | . . . . . . . . . . 73 Total Part Build Rating 6 | . . . . . . . . . . 6 Part Studies Acquired 2 | . . . . . 1 . . . . 1 Parts Repaired 3 | . 1 . . . 1 . . . . 1 Time 107 | . 13 . . . 38 . . . . 56 Parts Recycled . | . . . . . . . . . . . Recycled Matter . | . . . . . . . . . . . Retrieved Matter . | . . . . . . . . . . . Retrieved Components . | . . . . . . . . . . . Parts Scanalyzed 2 | . . . . . . . . . . 2 Part Schematics Acquired 2 | . . . . . . . . . . 2 Parts Damaged . | . . . . . . . . . . . Bothacking | -11 -10 -10 -8 -8 -6 -6 -6 -6 -5 -5 ------------ Run | Yrd Mat Sub Rec Scr Fac Low Low Dat Pro Fac Used RIF Installer . | . . . . . . . . . . . Robots Hacked 5 | . . . . 5 . . . . . . Non-combat 1 | . . . . 1 . . . . . . Combat 4 | . . . . 4 . . . . . . Robot Hacks Applied 5 | . . . . 5 . . . . . . parse_system 5 | . . . . 5 . . . . . . Relay Couplers Released 3 | . . . . . . . . . . 3 Programmers 3 | . . . . . . . . . . 3 Fabnet Peak Effective % . | . . . . . . . . . . . Robots Rewired 3 | . . . 2 . . . . . . 1 Allies Hacked . | . . . . . . . . . . . Hacks Repelled . | . . . . . . . . . . . Allies | -11 -10 -10 -8 -8 -6 -6 -6 -6 -5 -5 -------- Run | Yrd Mat Sub Rec Scr Fac Low Low Dat Pro Fac Total Allies 9 | . . . 2 5 . . . . . 2 Largest Group 7 | . . . 2 7 7 . . . . 1 Highest-Rated Group 270 | . . . 32 270 270 . . . . 29 Highest-Rated Ally 50 | . . . 16 50 50 . . . . 29 Initial UFD Resources 25 | . . . . . 23 23 23 23 25 25 Total Orders 4 | . . . . 2 . . . . . 2 STAY 2 | . . . . 1 . . . . . 1 FOLLOW 2 | . . . . 1 . . . . . 1 Ally Attacks 107 | . . . . . 104 . . . . 3 Total Damage 1624 | . . . . . 1566 . . . . 58 Kills 16 | . . . . . 15 . . . . 1 Allies Corrupted . | . . . . . . . . . . . Allies Melted . | . . . . . . . . . . . Intel | -11 -10 -10 -8 -8 -6 -6 -6 -6 -5 -5 ------- Run | Yrd Mat Sub Rec Scr Fac Low Low Dat Pro Fac Active Infowar (turns) 20130 | 109 1043 5259 2226 . 1721 1216 1818 157 3687 2894 Sensors 8736 | . . . . . . 1188 1818 155 3145 2430 IFF 1628 | . . . . . 1623 5 . . . . Terrain 5363 | . . 3137 2226 . . . . . . . Structural 5886 | . . . . . . 941 1816 154 1911 1064 Seismic 3274 | 109 1043 2122 . . . . . . . . Cloaking 4524 | . . . . . . . 1683 157 2070 614 Jamming 5531 | . . . . . 1721 398 . . 686 2726 ECM 162 | . . . . . . . . . 162 . Robot Analysis Total . | . . . . . . . . . . . Derelict Logs Recovered 7 | . . 2 . 1 . 2 1 . 1 . Drone Launches . | . . . . . . . . . . . Drone Recoveries . | . . . . . . . . . . . Exploration | -11 -10 -10 -8 -8 -6 -6 -6 -6 -5 -5 ------------- Run | Yrd Mat Sub Rec Scr Fac Low Low Dat Pro Fac Turns Passed 32438 | 177 1286 8124 2729 8583 1743 1219 1832 160 3691 2894 Spaces Moved 15972 | 70 577 1911 785 6258 921 696 1023 94 1812 1825 Core 1966 | 2 . . . 1964 . . . . . . Treads 4511 | 68 577 1911 785 1170 . . . . . . Legs 2139 | . . . . 311 . . . . 3 1825 Wheels 5579 | . . . . 1036 921 696 1023 94 1809 . Hover . | . . . . . . . . . . . Flight 1777 | . . . . 1777 . . . . . . Fastest Speed 50 | 50 160 160 340 50 135 165 165 165 165 108 Average Speed 166 | 156 160 257 340 132 163 165 165 165 167 121 Slowest Speed 340 | 160 160 340 340 340 165 180 180 180 270 270 Overloaded Moves . | . . . . . . . . . . . Propulsion Burnouts . | . . . . . . . . . . . Robots Hopped . | . . . . . . . . . . . Potential Cave-ins . | . . . . . . . . . . . Cave-ins Triggered . | . . . . . . . . . . . Exploration Rate (%) 67 | 4 87 85 78 93 24 81 83 75 84 44 Regions Visited 10 Branch Regions 7 Pre-discovered Areas 18 | . 4 2 5 5 . 1 . 1 . . Known Exits Taken 8 | . 1 1 . 1 1 1 1 1 1 . Unknown Exits Taken 2 | 1 . . 1 . . . . . . . Scrap Searched 22 | . . 6 . 8 . 2 3 . 3 . Spaces Dug 129 | . . 19 . . 8 7 11 . 33 51 Terrain Destroyed 511 | . 30 162 . . 28 64 66 . 69 92 Melee 73 | . . . . . 6 3 4 . 14 46 Projectile 116 | . . 26 . . 5 7 30 . 31 17 AOE 322 | . 30 136 . . 17 54 32 . 24 29 Terrain Rammed . | . . . . . . . . . . . Walls Destroyed . | . . . . . . . . . . . Machines Disabled . | . . . . . . . . . . . Actions | -11 -10 -10 -8 -8 -6 -6 -6 -6 -5 -5 --------- Run | Yrd Mat Sub Rec Scr Fac Low Low Dat Pro Fac Total 21091 | 108 915 4932 829 6564 1122 736 1097 97 2367 2324 Wait 4158 | 6 294 2868 11 166 122 4 15 . 387 285 Move 15962 | 69 576 1910 784 6257 920 695 1022 93 1811 1825 Hop . | . . . . . . . . . . . Pick Up 148 | 1 17 17 8 65 12 3 . . 17 8 Fast Attach 33 | 6 2 . . 13 3 1 . . 3 5 Attach 21 | . . 1 . 9 6 . . . 2 3 Detach 8 | . . . 1 7 . . . . . . Swap 157 | . 6 32 4 10 13 8 4 4 40 36 Drop 101 | . 4 23 2 26 8 2 . . 22 14 Fire 267 | 26 16 81 15 6 23 12 33 . 37 18 Melee 209 | . . . 4 5 10 11 23 . 40 116 Ram . | . . . . . . . . . . . Kick . | . . . . . . . . . . . Crush . | . . . . . . . . . . . Escape Stasis . | . . . . . . . . . . . Rewire 19 | . . . . . 5 . . . . 14 Trap 8 | . . . . . . . . . 8 . Miscellaneous . | . . . . . . . . . . . Route ------- -11/Scrapyard -10/Materials (discovered 6 exits: *Mat x3 / *Min x2 / *Sub) -10/Subcaves (discovered 3 exits: *Mat x2 / *Rec) -8/Recycling (discovered 2 exits: *Fac / *Scr) -8/Scraptown (discovered 2 exits: *Fac x2) -6/Factory (discovered 3 exits: *Fac / *Low x2) -6/Lower Caves -6/Lower Caves (discovered 2 exits: Fac / *Dat) -6/Data Miner -5/Proximity Caves -5/Factory (discovered 4 exits: [*Fac x2] / *Upp x2) History --------- Turn | Location | Event 18 | -11/Scrapyard | Discovered new exit (range 15) 178 | -11/Scrapyard | Entered Materials 316 | -10/Materials | Build established: Mutant 644 | -10/Materials | Discovered new exit (range 11) 779 | -10/Materials | Repaired Lgt. Treads 822 | -10/Materials | Discovered new exit (range 11) 878 | -10/Materials | Derelicts attacked the area 937 | -10/Materials | Discovered new exit (range 11) 952 | -10/Materials | Discovered new exit (range 12) 997 | -10/Materials | Identified exit to Materials 997 | -10/Materials | Identified exit to Mines 997 | -10/Materials | Identified exit to Subcaves 1074 | -10/Materials | Learned location of 2 exits from Materials 1141 | -10/Materials | Learned location of Recycling (-8) 1199 | -10/Materials | Learned location of 1 exit from Recycling 1245 | -10/Materials | Learned 4 Subcaves zone layouts 1344 | -10/Materials | Learned location of 2 exits from Subcaves 1392 | -10/Materials | Learned Storage terminal intel 1449 | -10/Materials | Learned 4 Recycling zone layouts 1464 | -10/Materials | Entered Subcaves 1465 | -10/Subcaves | Identified exit to Recycling 1465 | -10/Subcaves | Identified exit to Materials 1471 | -10/Subcaves | Learned location of Zion (-7) 1472 | -10/Subcaves | Discovered exit to Materials (range 16) 2923 | -10/Subcaves | A swath of the cavern ceiling suddenly collapsed 3628 | -10/Subcaves | Ambushed by angry Subdweller bent on revenge 3729 | -10/Subcaves | Visited Clippyterm 3770 | -10/Subcaves | Met a Zionite searching for "candidates" 3806 | -10/Subcaves | Learned Materials stockpile data 3858 | -10/Subcaves | Shifting Twisted Machinery released Battle Cannon 6797 | -10/Subcaves | Core integrity fell below 50% 7100 | -10/Subcaves | Visited 4L-MR0's lab 7128 | -10/Subcaves | Found Prototype Device 7141 | -10/Subcaves | Found Arachnoskeleton 9229 | -10/Subcaves | Found SUBCON Basin 9588 | -10/Subcaves | Entered Recycling 9589 | -8/Recycling | Met a Zionite searching for Scraptown 9589 | -8/Recycling | Identified exit to Factory 11041 | -8/Recycling | Scanned before Scraplab entrance 11092 | -8/Recycling | Entered Scraplab 11806 | -8/Recycling | Learned Factory emergency access door positions 11861 | -8/Recycling | Core integrity fell below 20% 11926 | -8/Recycling | Learned 2 Lower Caves zone layouts 12008 | -8/Recycling | Learned Factory stockpile data 12056 | -8/Recycling | Learned location of 1 exit from Storage 12310 | -8/Recycling | Discovered new exit (range 2) 12317 | -8/Recycling | Entered Scraptown 12317 | -8/Scraptown | Accompanied by 2 allies 12317 | -8/Scraptown | System corruption cleaned by C-Scrubber 13136 | -8/Scraptown | Discovered exit to Factory (range 11) 13313 | -8/Scraptown | Scanned Subdweller tech in exchange for log data 13326 | -8/Scraptown | Learned Factory terminal intel 13428 | -8/Scraptown | Visited SPCMW 13510 | -8/Scraptown | Visited The Evicted 13911 | -8/Scraptown | Visited Fellowship of the Rings 13938 | -8/Scraptown | Visited CPS Storage 14377 | -8/Scraptown | Visited CR-KLE's Repair Center 14428 | -8/Scraptown | Visited Cave Peace 14618 | -8/Scraptown | Visited Cyclists 14707 | -8/Scraptown | Visited UFD Registry 14707 | -8/Scraptown | Registered with UFD as "Cryoback" 14788 | -8/Scraptown | Visited Research Penetration Think Tank 14897 | -8/Scraptown | Visited Sword Containment 14955 | -8/Scraptown | Visited Chapter 10 15098 | -8/Scraptown | Delivered Scrap Shield to a Scientist 15431 | -8/Scraptown | Visited Science Guys 15560 | -8/Scraptown | Visited Supply Room 15683 | -8/Scraptown | Visited Cartography Club 15744 | -8/Scraptown | Visited Supply Room 15815 | -8/Scraptown | Visited DA-N13 Charitable Foundation 15829 | -8/Scraptown | Found DCF Scrap (30 items) 15938 | -8/Scraptown | Visited Scrapoid Pod Storage 16316 | -8/Scraptown | Released all parts (6) 16353 | -8/Scraptown | Found Surveybot 17 Chip 16368 | -8/Scraptown | Learned location of Proximity Caves (-6) 16368 | -8/Scraptown | Learned location of Cetus (-6) 16368 | -8/Scraptown | Learned 8 Factory zone layouts 16368 | -8/Scraptown | Learned 12 Factory zone layouts 16368 | -8/Scraptown | Learned 12 Research zone layouts 16368 | -8/Scraptown | Learned 4 Mines zone layouts 16368 | -8/Scraptown | Learned 12 Lower Caves zone layouts 16368 | -8/Scraptown | Learned 8 Upper Caves zone layouts 16368 | -8/Scraptown | Learned 16 Upper Caves zone layouts 16368 | -8/Scraptown | Learned 20 Upper Caves zone layouts 16368 | -8/Scraptown | Learned 24 Proximity Caves zone layouts 16368 | -8/Scraptown | Learned 4 Armory zone layouts 16368 | -8/Scraptown | Learned location of 2 exits from Upper Caves 16368 | -8/Scraptown | Learned location of 3 exits from Upper Caves 16368 | -8/Scraptown | Learned location of 2 exits from Proximity Caves 16380 | -8/Scraptown | Found Deep Structural Scanner 16865 | -8/Scraptown | Entered Cyclist Reading Room 17724 | -8/Scraptown | Build established: Derelict-Mutant 18049 | -8/Scraptown | Found Scrapoid Pod 18258 | -8/Scraptown | Scrapoid Pod released 08S05-D (x5) 18358 | -8/Scraptown | Build established: Mutant 18406 | -8/Scraptown | Attached CPS modules to 08S01-D 18413 | -8/Scraptown | Attached CPS modules to 08S02-D 18442 | -8/Scraptown | Attached CPS modules to 08S03-D 18454 | -8/Scraptown | Attached CPS modules to 08S04-D 18492 | -8/Scraptown | Attached CPS modules to 08S05-D 18525 | -8/Scraptown | Attached CPS modules to Trooper 3a 18549 | -8/Scraptown | Tech Extrapolator generated special schematic: Machine Rigger 18695 | -8/Scraptown | Tech Extrapolator generated special schematic: Energy Deflector 19161 | -8/Scraptown | Tech Extrapolator generated special schematic: Deep Structural Scanner 19994 | -8/Scraptown | CR-KLE repaired 6 parts 20620 | -8/Scraptown | Found Prototype Slashing Weapon 20620 | -8/Scraptown | Identified Companion Sword 20900 | -8/Scraptown | Entered Factory 20900 | -6/Factory | Accompanied by 7 allies 20900 | -6/Factory | Evolved 8 slots: Power x1, Propulsion x1, Utility x6 20901 | -6/Factory | Identified exit to Factory 20901 | -6/Factory | Identified exit to Lower Caves 20905 | -6/Factory | Loaded intel: 28 terminal locations 21212 | -6/Factory | Build established: Derelict-Mutant 21447 | -6/Factory | Lost 3 allies 22044 | -6/Factory | Central database locked down 22400 | -6/Factory | Repaired Imp. Weapon Shielding 22643 | -6/Factory | Entered Lower Caves 22644 | -6/Lower Caves | Identified exit to Lower Caves 22645 | -6/Lower Caves | UFD Scientist delivered a prototype 22656 | -6/Lower Caves | Found Prototype Protection 22656 | -6/Lower Caves | Identified Enh. Scrap Shield 22860 | -6/Lower Caves | Encountered a Warlord checkpoint 22877 | -6/Lower Caves | Learned location of Extension (-6) 23347 | -6/Lower Caves | Build established: Assassin 23561 | -6/Lower Caves | Learned Factory trap positions 23862 | -6/Lower Caves | Entered another Lower Caves area 23932 | -6/Lower Caves | Discovered exit to Factory (range 15) 23975 | -6/Lower Caves | Learned Factory stockpile data 24076 | -6/Lower Caves | Encountered a Warlord checkpoint 24191 | -6/Lower Caves | Discovered new exit (range 14) 24231 | -6/Lower Caves | Identified exit to Data Miner 25694 | -6/Lower Caves | Entered Data Miner 25694 | -6/Data Miner | Discovered new exit (range 6) 25727 | -6/Data Miner | Met Data Miner 25757 | -6/Data Miner | Learned location of Section 7 (-2) 25757 | -6/Data Miner | Acquired the access code to Warlord's prototype stash 25790 | -6/Data Miner | Received God Mode back door access code from Data Miner 25846 | -6/Data Miner | Identified exit to Proximity Caves 25854 | -6/Data Miner | Entered Proximity Caves 26107 | -5/Proximity Caves | Attracted the attention of an 0b10 checkpoint 26970 | -5/Proximity Caves | Found DCF Scrap (13 items) 28156 | -5/Proximity Caves | Tech Extrapolator generated special schematic: Heat Bomb Trap 28361 | -5/Proximity Caves | Build established: Derelict-Gladiator 29338 | -5/Proximity Caves | Build established: Derelict-Mutant 29394 | -5/Proximity Caves | Spotted B-75 Beast 29537 | -5/Proximity Caves | Attached Arachnoskeleton, gained temporary slots: Propulsion x3 29545 | -5/Proximity Caves | Entered Factory 29545 | -5/Factory | Evolved 2 slots: Utility x2 29546 | -5/Factory | Loaded intel: 80 trap records 30031 | -5/Factory | Tech Extrapolator generated special schematic: Active Sensor Spoofer 30033 | -5/Factory | Identified exit to Upper Caves 30677 | -5/Factory | Discovered new exit (range 7) 30925 | -5/Factory | Build established: Infiltrator-Assassin 31178 | -5/Factory | Found Prototype Launcher 31178 | -5/Factory | Identified Scatter Rocket Array 31528 | -5/Factory | Discovered new exit (range 7) 31618 | -5/Factory | Fabricated Imp. Propulsion Shielding (x2) 31858 | -5/Factory | Build established: Mutant 32226 | -5/Factory | Repaired Imp. Transmission Jammer 32439 | -5/Factory | Self-destructed Last Messages --------------- 32343_ U-05 Engineer builds a Wall. 32378_ System corrupted: Matter fused (-5). 32378_ ALERT: Suspicious intruders detected, dispatching Specialist reinforcements to area. 32384_ W-25 Informer distress signal jammed. 32385_ Penetrated by Slug. 32385_ Megafabricator disabled. 32385_ W-25 Informer distress signal jammed. 32400_ System corrupted: Matter fused (-7). 32401_ W-25 Informer sends out distress signal. 32423_ Phasing Sabre follow-up attack on X-77 Beamer. 32423_ Destroyed Gatling Laser. 32429_ Phasing Sabre follow-up attack on X-77 Beamer. 32435_ Enh. Scrap Shield destroyed. 32437_ Phasing Sabre follow-up attack on X-77 Beamer. 32437_ X-77 Beamer Antimatter Reactor severed. 32437_ Imp. Propulsion Shielding destroyed. 32437_ Thunder Leg+ destroyed. 32439_ System corrupted: Heat flow error (+110). 32439_ Temporary Propulsion slot lost. Map ----- +----------------------------------------------------+ | # #??????????? ############### ####### | | ^""" + ##?????????? # # + | | """ ############### # # ####### | | """ # + + """ # #?????? | | # ##### ## " F" """"" # #?????? | | """ # #???# ## """" """"" # %##????? | | """ # #???# ## %###########???? | | """ # #???# ################?????###"##### | | ######???# ###################### # | | ############??# # | | #??# | | #??# "" """""" " | | #??# """"""""" | | #??# """"""""" # | | #??# """"""""" ########### # | | #??# """"""""" #?????????######### | | #??# """"""""" #?????????????????? | | #??# #?????????????????? | | % #??#! #?????????????????? | | "" "" #?????????????????? | | ######### "" "" #?????????????????? | | #????#### """ #?????????????????? | | ######### #####################?????????????????? | | # # ###############;#####?????????????????? | | # """ # ##### x ####?????????????????? | | # "R" # ##### ! @ ####?????????????????? | | # " " # ##### ####?????????????????? | | # # ##### x####?????????????????? | | # """ # # ####?????????????????? | | # """"" # # ####?????????????????? | | # """"" # + ####?????????????????? | | # + # ####?????????????????? | | # ] # # ####?????????????????? | | # # # ####?????????????????? | | ######### # ####?????????????????? | | # ####?????????????????? | | #################?????????????????? | | ""G"" #################?????????????????? | | " " #################?????????????????? | | " " #################?????????????????? | | ### #####?????????????????????????????? | | ### ####??????????????????????????????? | | ### ########??????????????????????????? | | ### ########??????????????????????????? | | ### ########??????????????????????????? | | ### """"""" ########??????????????????????????? | | ### """"""" # ??????????????????????????? | | ### """"""" # """" "??????????????????????????? | | ### """"""" # """" "??????????????????????????? | | ### # """" """" ####?????????????????? | +----------------------------------------------------+ Best States ------------- Heat Dissipation 40 Energy Generation 41 Energy Capacity 530 Matter Stores 300 Matter Capacity 300 Sight Range 16 Robot Scan Range 16 Terrain Scan Range 16 Terrain Scan Density 10 ECM Strength 2 Jamming Range 14 Cloak Strength 2 Power Amplification 30 Additional Mass Support 9 Armor Coverage 1025 Resistance: TH 15 Propulsion Shielding 66 Weapon Shielding 66 Melee Speed Boost 20 Evasion (%) 78 Targeting Accuracy 6 Melee Accuracy 8 Recoil Reduction 2 Offensive Hacking 10 Defensive Hacking 12 Authchip Count 4 Item Schematics ----------------- Lgt. Humpback | -8/Scraptown | Extrapolated Machine Rigger | -8/Scraptown | Extrapolated Mak. Leg | -8/Scraptown | Extrapolated Energy Deflector | -8/Scraptown | Extrapolated Mak. Coolant Network | -8/Scraptown | Extrapolated Deep Structural Scanner | -8/Scraptown | Extrapolated Mak. Terrain Scanner | -8/Scraptown | Extrapolated Spk. Treads | -8/Scraptown | Extrapolated Hvy. Beamcaster | -8/Scraptown | Extrapolated 0b10 Decoder Chip [Generic] | -6/Factory | Extrapolated 0b10 Decoder Chip [Scout] | -6/Factory | Extrapolated 0b10 Decoder Chip [Skirmisher] | -6/Factory | Extrapolated Mak. Thermal Plating | -6/Factory | Extrapolated Mak. System Shield | -6/Factory | Extrapolated Spk. Medium Treads | -6/Factory | Extrapolated Mak. Targeting Computer | -6/Factory | Extrapolated Hvy. Battle Rifle | -6/Factory | Extrapolated Mak. Weapon Shielding | -6/Factory | Extrapolated Mak. Spear | -6/Factory | Extrapolated Mak. Light Armor Plating | -6/Factory | Extrapolated Beamcaster | -6/Factory | Extrapolated Enh. Flamer | -6/Lower Caves | Extrapolated Mak. Flight Unit | -6/Lower Caves | Extrapolated Mak. System Restoration Module | -6/Lower Caves | Extrapolated Mak. Core Shielding | -6/Data Miner | Extrapolated Combat Drone Bay | -6/Data Miner | Free Lgt. Regenerative Plating | -6/Data Miner | Free Enh. Armored Leg | -6/Data Miner | Free Imp. Thermal Defense Suite | -6/Data Miner | Free Hvy. Proton Missile Launcher | -6/Data Miner | Free Field Propulsion Array | -6/Data Miner | Free Adv. Coolant Injector | -6/Data Miner | Free Adv. Datajack | -6/Data Miner | Free Lance | -6/Data Miner | Free Hvy. Gauss Cannon | -6/Data Miner | Free Imp. Fusion Compressor | -6/Data Miner | Free Adv. Recalibrator | -6/Data Miner | Free Fusion Bomb Launcher | -6/Data Miner | Free Mak. Medium Armor Plating | -5/Proximity Caves | Extrapolated Mak. Ablative Armor | -5/Proximity Caves | Extrapolated Spk. Heavy Treads | -5/Proximity Caves | Extrapolated Mak. Trap Scanner | -5/Proximity Caves | Extrapolated Heat Bomb Trap | -5/Proximity Caves | Extrapolated Mak. Laser | -5/Proximity Caves | Extrapolated Slug Cannon | -5/Factory | Extrapolated Active Sensor Spoofer | -5/Factory | Extrapolated Mak. Salvage Targeting Computer | -5/Factory | Extrapolated Imp. Propulsion Shielding | -5/Factory | Scanalyzed Mapping Drone Bay | -5/Factory | Scanalyzed Multitool | -5/Factory | Extrapolated Mak. Terrain Scan Processor | -5/Factory | Extrapolated Robot Schematics ------------------ S-27 Virus | -6/Data Miner | Free A-15 Conveyor | -6/Data Miner | Free B-60 Warrior | -6/Data Miner | Free A-27 Freighter | -6/Data Miner | Free Fabricated ------------ Imp. Propulsion Shielding | x2 | -5/Factory Repaired ---------- Lgt. Treads | 72% | -10/Materials Imp. Weapon Shielding | 36% | -6/Factory Imp. Transmission Jammer | 28% | -5/Factory Studied --------- Arm. Leg | -6/Factory | Hacked Thunder Leg | -5/Factory | Hacked Alien Tech Used ----------------- None Achievements -------------- None Challenges ------------ None Game ------ Seed NeutronPulseMatter Manual? 0 Play Time 04:26:59 Cumulative 452.3 hours Start 2026.08.18 @ 13:16:35 End 2026.08.25 @ 13:44:22 Sessions 5 Manual Loads 0 Difficulty Rogue Special Mode None Game No. 338 Rogue 338 Adventurer 0 Explorer 0 Win Type - Total 9 Types 4/0/3/2/0/0/0/0/0/0 Lore% 43 Gallery% 69 Achievement% 56 Wizard Run 0 Options --------- Layout 2 ASCII 0 Keyboard 1 Movement Vi Keybinds 0 Fullscreen 2 Font 32/SmallcapsGlow Map View 77x44 Zoom Use 0% Tactical HUD 1 Map Filters NONE Filters NONE Steam 1 RUN: 6f2cf885-04f4-443d-a0cc-8b53acee203e